[Event "FIDE WTC Prel-B 2022"]
[Site "Jerusalem"]
[Date "2022.11.20"]
[Round "1.17"]
[White "Wojtaszek, Radoslaw"]
[Black "Niemann, Hans Moke"]
[Result "1/2-1/2"]
[ECO "A29"]
[WhiteElo "2686"]
[BlackElo "2699"]
[Annotator "TA"]
[PlyCount "107"]
[EventDate "2022.11.20"]
[EventType "team-tourn"]
[EventCountry "ISR"]
[SourceTitle "playchess.com"]
[Source "ChessBase"]
[SourceQuality "1"]
[WhiteTeam "Poland"]
[BlackTeam "United States"]
[WhiteTeamCountry "POL"]
[BlackTeamCountry "USA"]
[TimeControl "2700+10"]

{[%evp 19,107,6,6,3,13,17,10,0,15,8,6,11,15,6,12,17,66,22,22,13,15,17,16,9,32,32,30,32,30,12,12,0,0,0,45,41,41,38,45,45,45,45,45,48,52,50,53,50,48,36,50,50,71,33,33,33,36,30,36,10,23,23,23,8,35,36,143,137,129,103,104,12,12,12,12,12,12,0,8,0,0,0,0,0,0,0,0,0,0,0]} 1. c4 {[%emt 0:00:03]} Nf6 {[%emt 0:01:53]} 2. Nc3 {[%emt 0:00:03]} e5 {[%emt 0:00:34]} 3. Nf3 {[%emt 0:00:03]} Nc6 {[%emt 0:00:04]} 4. g3 {[%emt 0:00:04]} d5 {[%emt 0:02:54]} 5. cxd5 {[%emt 0:00:04]} Nxd5 {[%emt 0:00:04]} 6. Bg2 {[%emt 0:00:03]} Nb6 {[%emt 0:04:48]} 7. O-O {[%emt 0:00:04]} Be7 {[%emt 0:00:04]} 8. a3 {[%emt 0:00:08]} O-O {[%emt 0:01:17]} 9. b4 {[%emt 0:00:03]} Be6 {[%emt 0:00:02]} 10. Rb1 {[%emt 0:00:15]} f6 {[%emt 0:00:32]} 11. b5 {[%emt 0:00:04] A29: English Opening: Four Knights Variation with 4 g3.} Nd4 {[%emt 0:00:10]} 12. e3 {[%emt 0:00:03]} Nxf3+ {[%emt 0:01:38]} 13. Bxf3 {[%emt 0:00:03]} Rb8 {[%emt 0:00:31]} 14. d4 {[%emt 0:03:25]} exd4 {[%emt 0:00:57]} 15. exd4 {[%emt 0:00:03]} Bf7 {[%emt 0:01:08]} 16. Re1 {[%emt 0:01:26]} Re8 {[%emt 0:00:12]} 17. a4 {[%emt 0:01:55]} Qd7 {[%emt 0:05:43] [#]} (17... Bd6 $11) 18. Bf4 $146 {[%emt 0:01:46]} ({Predecessor:} 18. a5 Nd5 19. Nxd5 Bxd5 20. Bf4 Rbc8 21. Bg4 f5 22. Bh5 Red8 23. Bf3 Bf8 24. Be5 {1-0 (44) Dubov,D (2699)-Nakamura,H (2736) chess24.com INT 2020}) 18... Nc4 {[%emt 0:02:49]} 19. Bg4 {[%emt 0:11:00]} f5 {[%emt 0:02:14]} 20. Bf3 {[%emt 0:00:02]} g5 {[%emt 0:02:37]} 21. Be5 {[%emt 0:03:10]} Nxe5 {[%emt 0:01:01]} 22. dxe5 {[%emt 0:00:03]} Qxd1 {[%emt 0:00:02]} 23. Rexd1 {[%emt 0:00:29]} g4 {[%emt 0:04:44]} 24. Bg2 {[%emt 0:03:32]} Bg5 {[%emt 0:00:33]} 25. Rd7 {[%emt 0:05:24]} Rxe5 {[%emt 0:00:09]} 26. Rxc7 {[%emt 0:00:02]} Re7 {[%emt 0:06:09]} (26... Bd2 {seems wilder.} 27. Rd1 Rd8 28. Bxb7 Rd4) 27. Rxe7 {[%emt 0:01:32]} Bxe7 {[%emt 0:00:03]} 28. Nd5 {[%emt 0:00:01]} Bg5 {[%emt 0:01:48]} 29. b6 {[%emt 0:02:26]} axb6 {[%emt 0:00:29]} 30. Nxb6 {[%emt 0:00:02]} Be6 {[%emt 0:01:05]} 31. Bd5 {[%emt 0:00:39]} Bxd5 {[%emt 0:02:04]} 32. Nxd5 $14 {[%emt 0:00:01][%mdl 4096] Endgame KRB-KRN} Ra8 {[%emt 0:01:09]} 33. h4 {[%emt 0:00:38]} gxh3 {[%emt 0:00:24]} 34. Rxb7 {[%emt 0:00:58]} Ra5 {[%emt 0:00:40]} 35. Rd7 {[%emt 0:02:29] aiming for f4.} Kf8 {[%emt 0:00:02]} 36. f4 {[%emt 0:01:09] White is more active.} Ke8 {[%emt 0:00:02]} 37. Rd6 {[%emt 0:00:19]} Bd8 {[%emt 0:00:31]} ({Don't take} 37... Be7 38. Nxe7 h2+ 39. Kxh2 Kxe7 40. Rd4 $16) 38. Kh2 {[%emt 0:00:16]} Rxa4 {[%emt 0:00:05]} 39. Kxh3 {[%emt 0:00:16]} Ra3 {[%emt 0:00:17]} 40. Re6+ {[%emt 0:01:49]} Kf7 {[%emt 0:00:07]} 41. Re5 {[%emt 0:00:02]} Kg6 {[%emt 0:00:13]} 42. Re8 {[%emt 0:00:01]} Ba5 {[%emt 0:00:07]} ({Better is} 42... Ra8 $1 $14) 43. Re6+ $16 {[%emt 0:00:55]} Kg7 {[%emt 0:00:04] [#]} 44. Ra6 $1 {[%emt 0:02:44]} Kf7 {[%emt 0:00:01] [#]} 45. Rf6+ {[%emt 0:01:00]} (45. Ra7+ $1 $16 Kg6 46. Ne7+ Kf6 47. Ng8+ Ke6 48. Ra6+ Kd7 49. Nh6) 45... Kg7 $11 {[%emt 0:00:01] The position is equal.} 46. Rxf5 {[%emt 0:00:02][%cal Od5e3]} Be1 {[%emt 0:00:02]} 47. Rg5+ {[%emt 0:00:01]} Kf7 {[%emt 0:00:02]} 48. f5 {[%emt 0:01:24]} h6 {[%emt 0:00:36]} 49. Rg6 {[%emt 0:00:09]} Rf3 {[%emt 0:00:15]} 50. Rf6+ {[%emt 0:01:02]} Kg7 {[%emt 0:00:04]} 51. Rg6+ {[%emt 0:00:09]} Kf7 {[%emt 0:00:01]} 52. Rf6+ {[%emt 0:00:13]} Kg7 {[%emt 0:00:01]} 53. Rg6+ {[%emt 0:00:01]} Kf7 {[%emt 0:00:01]} 54. Rf6+ {[%emt 0:00:13] Weighted Error Value: White=0.09 (flawless) /Black=0.09 (flawless)} 1/2-1/2

[Event "FIDE WTC Prel-B 2022"]
[Site "Jerusalem"]
[Date "2022.11.20"]
[Round "1.18"]
[White "Bruzon Batista, Lazaro"]
[Black "Piorun, Kacper"]
[Result "1/2-1/2"]
[ECO "E52"]
[WhiteElo "2615"]
[BlackElo "2611"]
[Annotator "TA"]
[PlyCount "66"]
[EventDate "2022.11.20"]
[EventType "team-tourn"]
[EventCountry "ISR"]
[SourceTitle "playchess.com"]
[Source "ChessBase"]
[SourceQuality "1"]
[WhiteTeam "United States"]
[BlackTeam "Poland"]
[WhiteTeamCountry "USA"]
[BlackTeamCountry "POL"]
[TimeControl "2700+10"]

{[%evp 12,66,5,9,7,0,12,14,39,22,21,21,22,14,38,22,29,33,31,26,46,31,36,9,10,0,0,8,31,20,18,24,46,58,48,0,0,0,0,0,0,0,0,0,0,0,0,0,0,0,0,0,0,0,0,0,0]} 1. d4 {[%emt 0:00:04]} Nf6 {[%emt 0:00:08]} 2. c4 {[%emt 0:00:06]} e6 {[%emt 0:00:04]} 3. Nf3 {[%emt 0:00:14]} b6 {[%emt 0:00:02]} 4. Nc3 {[%emt 0:00:10]} Bb4 {[%emt 0:01:17]} 5. e3 {[%emt 0:00:31]} O-O {[%emt 0:02:10]} 6. Bd3 {[%emt 0:00:08]} d5 {[%emt 0:00:02]} 7. O-O {[%emt 0:00:39]} dxc4 {[%emt 0:03:15] E52: Nimzo-Indian: Rubinstein: 4...0-0 5 Nf3 d5 6 Bd3 b6.} 8. Bxc4 {[%emt 0:00:08]} Bb7 {[%emt 0:00:01]} 9. Qe2 {[%emt 0:04:24]} Nbd7 {[%emt 0:02:14] 9...c5 is not played anymore.} 10. Rd1 {[%emt 0:01:08]} (10. a3 $5 {[%cal Ra3b4]} Bxc3 11. bxc3 $11) 10... Qe7 {[%emt 0:03:09]} (10... Rc8 {with more complications.} 11. Ne5 c5 12. Bb5 Qc7) 11. a3 {[%emt 0:06:11]} Bxc3 {[%emt 0:00:02]} 12. bxc3 {[%emt 0:00:01]} c5 {[%emt 0:00:02]} (12... Ne4 $5 {[%cal Re4c3]} 13. Bb2 Nd6 $11) 13. a4 {[%emt 0:00:55]} Ne4 {[%emt 0:01:23]} 14. Bb2 {[%emt 0:00:09]} Rfc8 {[%emt 0:00:34] [#]} 15. Rac1 $146 {[%emt 0:07:02]} ({Predecessor:} 15. a5 cxd4 16. Rxd4 Ndf6 17. a6 Bd5 18. Bxd5 exd5 19. c4 dxc4 20. Rxc4 Rxc4 21. Qxc4 {½-½ (91) Lodici,L (2523)-Zimina,O (2354) Chianciano Terme 2021}) 15... Nd6 {[%emt 0:12:19]} 16. Bd3 {[%emt 0:04:08]} e5 {[%emt 0:03:55]} 17. Nxe5 {[%emt 0:02:07]} Nxe5 {[%emt 0:00:04]} 18. dxe5 {[%emt 0:00:02]} Qxe5 {[%emt 0:00:03]} 19. c4 {[%emt 0:00:12]} Qg5 {[%emt 0:00:01][%csl Gb7][%cal Rg5g2] [#]} 20. e4 {[%emt 0:06:18][%cal Oa4a5,Be3e4,Be4e5][%mdl 32]} Re8 {[%emt 0:05:38][%cal Rb7e4]} 21. f3 {[%emt 0:00:03][%cal Oa4a5]} f5 {[%emt 0:01:48][%cal Rf5e4]} 22. e5 {[%emt 0:01:03][%cal Oa4a5]} Nf7 {[%emt 0:00:05]} 23. f4 {[%emt 0:02:32]} (23. Bc2 $14 Re6 24. Qf2) 23... Qxf4 $11 {[%emt 0:00:23][%cal Rf7e5] The position is equal.} 24. Rf1 {[%emt 0:00:30][%cal Bd1f1,Bf1f7,Bf7g7][%mdl 32]} Qg4 {[%emt 0:00:19]} 25. Qxg4 {[%emt 0:00:04]} ({Reject} 25. Rxf5 Qxe2 26. Bxe2 g6 $17) 25... fxg4 {[%emt 0:00:01]} 26. Bxh7+ $1 {[%emt 0:00:09]} Kxh7 {[%emt 0:00:02]} 27. Rxf7 {[%emt 0:00:01]} Bc8 {[%emt 0:00:09]} 28. e6 $36 {[%emt 0:00:30][%mdl 2048] White has good play.} Bxe6 {[%emt 0:00:02]} 29. Rxg7+ {[%emt 0:00:03]} Kh6 {[%emt 0:00:02]} 30. Rc7 {[%emt 0:01:21] [#] Strongly threatening Rf1.} Rec8 {[%emt 0:02:26]} 31. Re7 {[%emt 0:00:23]} Re8 {[%emt 0:00:03]} 32. Rc7 {[%emt 0:00:31] Threatens to win with Rf1.} Rec8 {[%emt 0:00:20]} 33. Re7 {[%emt 0:00:08]} Re8 {[%emt 0:00:02] Weighted Error Value: White=0.06 (flawless) /Black=0.04 (flawless)} 1/2-1/2

[Event "FIDE WTC Prel-B 2022"]
[Site "Jerusalem"]
[Date "2022.11.20"]
[Round "1.19"]
[White "Bartel, Mateusz"]
[Black "Onischuk, Alexander"]
[Result "1/2-1/2"]
[ECO "C78"]
[WhiteElo "2627"]
[BlackElo "2640"]
[Annotator "TA"]
[PlyCount "77"]
[EventDate "2022.11.20"]
[EventType "team-tourn"]
[EventCountry "ISR"]
[SourceTitle "playchess.com"]
[Source "ChessBase"]
[SourceQuality "1"]
[WhiteTeam "Poland"]
[BlackTeam "United States"]
[WhiteTeamCountry "POL"]
[BlackTeamCountry "USA"]
[TimeControl "2700+10"]

{[%evp 20,77,6,3,8,-7,0,-8,-6,0,0,0,12,10,14,0,13,0,0,-12,0,-22,-34,-30,0,0,0,0,0,0,0,0,0,0,0,0,0,-19,0,-12,0,0,0,0,0,0,0,0,0,0,0,0,0,0,0,0,0,0,0,0]} 1. e4 {[%emt 0:00:04]} e5 {[%emt 0:00:04]} 2. Nf3 {[%emt 0:00:04]} Nc6 {[%emt 0:00:04]} 3. Bb5 {[%emt 0:00:04][%cal Bf1b5,Bb5a4,Ba4b3][%mdl 32]} a6 {[%emt 0:00:14]} 4. Ba4 {[%emt 0:00:04]} Nf6 {[%emt 0:00:06]} 5. O-O {[%emt 0:00:10]} Bc5 {[%emt 0:00:28]} 6. d3 {[%emt 0:03:43]} d6 {[%emt 0:01:11]} 7. c3 {[%emt 0:00:56]} b5 {[%emt 0:01:26]} 8. Bb3 {[%emt 0:00:12]} h6 {[%emt 0:02:33]} 9. h3 {[%emt 0:00:06]} O-O {[%emt 0:00:34]} 10. Nbd2 {[%emt 0:00:03][%cal Bb1d2,Bd2f1,Bf1g3][%mdl 32]} Re8 {[%emt 0:02:38]} 11. Re1 {[%emt 0:00:48]} Be6 {[%emt 0:02:51] C78: Ruy Lopez: Archangelsk and Möller Defences.} 12. Nf1 {[%emt 0:04:10]} d5 {[%emt 0:04:17]} 13. exd5 {[%emt 0:02:00]} Bxd5 {[%emt 0:01:14] [#]} 14. Be3 $146 {[%emt 0:00:21]} ({Predecessor:} 14. Bc2 Qd7 15. Ng3 Bf8 16. Be3 Rad8 17. Ne4 Nh7 18. Nc5 Qc8 19. b4 f5 20. Bb3 {0-1 (44) Sadikhov,U (2409)-Amin,B (2661) Baku 2016}) 14... Bf8 {[%emt 0:04:49]} 15. Ng3 {[%emt 0:03:01]} Qd7 {[%emt 0:01:24]} 16. Ne4 {[%emt 0:01:49]} Be7 {[%emt 0:02:11]} 17. Nfd2 {[%emt 0:03:00]} Rad8 {[%emt 0:01:50]} 18. Nxf6+ {[%emt 0:06:59]} Bxf6 {[%emt 0:00:04]} 19. Qh5 {[%emt 0:00:02]} Be7 {[%emt 0:02:39]} 20. Ne4 {[%emt 0:00:11]} Bxb3 {[%emt 0:01:47]} 21. axb3 {[%emt 0:00:06][%cal Oe3h6]} f5 {[%emt 0:00:37]} ({Don't play} 21... Qxd3 {[#]} 22. Bxh6 $1 g6 23. Qg4 $16) 22. Nc5 {[%emt 0:02:43] The position is equal.} Bxc5 {[%emt 0:00:11]} 23. Bxc5 {[%emt 0:00:03]} a5 {[%emt 0:00:29]} 24. Qg6 {[%emt 0:02:34]} Qe6 {[%emt 0:02:42]} 25. Qxe6+ {[%emt 0:01:10]} Rxe6 {[%emt 0:00:01]} 26. d4 $1 {[%emt 0:00:35]} Kf7 {[%emt 0:01:22][%cal Re5d4]} 27. dxe5 {[%emt 0:00:07]} Rd2 {[%emt 0:01:00]} 28. f4 {[%emt 0:02:13]} g5 {[%emt 0:00:32]} 29. Rad1 {[%emt 0:02:35]} Rxd1 {[%emt 0:01:14]} 30. Rxd1 {[%emt 0:00:02]} gxf4 $11 {[%emt 0:00:12][%mdl 4096] Endgame KRB-KRN} 31. Rd7+ {[%emt 0:01:44]} Kg6 {[%emt 0:00:18]} 32. Rxc7 {[%emt 0:01:51]} Nxe5 {[%emt 0:00:13]} 33. Kf2 {[%emt 0:01:00]} Nd3+ {[%emt 0:02:39]} 34. Kf3 {[%emt 0:00:01]} Re4 {[%emt 0:02:02]} 35. Bd4 {[%emt 0:00:14]} Ne1+ {[%emt 0:00:39]} 36. Kf2 {[%emt 0:00:02]} Nd3+ {[%emt 0:00:05]} 37. Kf3 {[%emt 0:00:26]} Ne1+ {[%emt 0:01:05]} 38. Kf2 {[%emt 0:00:02]} Nd3+ {[%emt 0:00:03]} 39. Kf3 {[%emt 0:00:02] An even fight not without its subleties.  Weighted Error Value: White=0.05 (flawless) /Black=0.05 (flawless)} 1/2-1/2

[Event "FIDE WTC Prel-B 2022"]
[Site "Jerusalem"]
[Date "2022.11.20"]
[Round "1.20"]
[White "Akobian, Varuzhan"]
[Black "Gumularz, Szymon"]
[Result "1-0"]
[ECO "D36"]
[WhiteElo "2591"]
[BlackElo "2561"]
[Annotator "TA"]
[PlyCount "135"]
[EventDate "2022.11.20"]
[EventType "team-tourn"]
[EventCountry "ISR"]
[SourceTitle "playchess.com"]
[Source "ChessBase"]
[SourceQuality "1"]
[WhiteTeam "United States"]
[BlackTeam "Poland"]
[WhiteTeamCountry "USA"]
[BlackTeamCountry "POL"]
[TimeControl "2700+10"]

{[%evp 26,135,9,0,0,0,0,0,0,0,14,0,16,9,7,0,0,0,2,0,14,14,14,14,7,0,0,0,0,-18,63,55,63,57,73,63,70,43,39,35,33,37,60,72,68,52,54,40,68,74,88,49,62,49,82,49,49,41,75,59,239,239,239,239,239,239,234,210,189,208,231,216,215,215,388,371,335,322,442,504,504,504,480,442,425,425,418,352,12835,12836,12836,12836,12835,12835,12841,12841,12842,12842,12843,12843,12843,12843,12844,12844,12845,12844,12845,12845,12845,12845,12845,12846]} 1. d4 {[%emt 0:00:03]} Nf6 {[%emt 0:00:01]} 2. c4 {[%emt 0:00:04]} e6 {[%emt 0:00:02]} 3. Nc3 {[%emt 0:00:04]} d5 {[%emt 0:00:02]} 4. cxd5 {[%emt 0:00:08]} exd5 {[%emt 0:00:01]} 5. Bg5 {[%emt 0:00:12]} c6 {[%emt 0:00:06]} 6. e3 {[%emt 0:00:28]} h6 {[%emt 0:00:04]} 7. Bh4 {[%emt 0:00:08]} Be7 {[%emt 0:00:02]} 8. Bd3 {[%emt 0:00:26]} O-O {[%emt 0:00:04]} 9. Qc2 {[%emt 0:00:45]} Re8 {[%emt 0:00:03]} 10. Nf3 {[%emt 0:00:22]} Ne4 {[%emt 0:00:39]} 11. Bxe7 {[%emt 0:01:28]} Qxe7 {[%emt 0:00:02]} 12. O-O {[%emt 0:00:27]} Nd7 {[%emt 0:00:37][%cal Bb8d7,Bd7f6,Bf6e4][%mdl 32]} 13. Rab1 {[%emt 0:00:53] 13.b4 might become the main line.} Ndf6 {[%emt 0:04:35]} 14. b4 {[%emt 0:01:23]} Nxc3 {[%emt 0:00:48] D36: Queen's Gambit Declined: Exchange Variation: Main line (5 Bg5 c6 6 Qc2).} 15. Qxc3 {[%emt 0:00:02]} Ne4 {[%emt 0:00:05]} 16. Qc2 {[%emt 0:00:06]} Nd6 {[%emt 0:00:35] [#] The position is equal.} 17. a4 $146 {[%emt 0:01:21]} ({Predecessor:} 17. Ne5 Qf6 18. Rfc1 a6 19. a4 Re7 20. Qc5 Ne4 21. Qc2 Nd6 22. Qc5 {1-0 (35) Dimitrov,P (2189)-Stavrev,V Borovetz 2008}) 17... Be6 {[%emt 0:00:23]} 18. Rfc1 {[%emt 0:00:43]} Rac8 {[%emt 0:00:47]} 19. Ne5 {[%emt 0:01:07]} a6 {[%emt 0:05:13]} 20. Qc5 {[%emt 0:01:34]} Qd8 {[%emt 0:00:38]} 21. h3 {[%emt 0:01:48]} f6 {[%emt 0:09:42]} 22. Ng6 {[%emt 0:01:16]} Qd7 {[%emt 0:24:21]} 23. Qc2 {[%emt 0:04:41]} Bf5 {[%emt 0:00:00]} 24. Bxf5 {[%emt 0:03:46]} Nxf5 {[%emt 0:00:00]} 25. Nf4 {[%emt 0:01:17]} Nd6 {[%emt 0:00:00]} 26. Qd3 {[%emt 0:02:48]} Qf7 {[%emt 0:00:00]} 27. Ne2 {[%emt 0:00:39]} b5 {[%emt 0:00:00]} (27... f5 $11) 28. Ra1 {[%emt 0:00:26]} Nc4 {[%emt 0:00:00]} 29. Qc2 {[%emt 0:02:52]} Qe7 {[%emt 0:00:00]} 30. Qc3 {[%emt 0:01:32]} Rb8 {[%emt 0:00:00][%cal Oa6a5]} 31. Nf4 {[%emt 0:01:49][%cal Be2f4,Bf4d3,Bd3b4,Bb4a6,Ba6c5][%mdl 32]} a5 {[%emt 0:00:00]} 32. Nd3 {[%emt 0:00:39]} ({Much weaker is} 32. bxa5 b4 33. Qb3 Nxa5 $11) 32... axb4 {[%emt 0:00:00]} 33. Nxb4 {[%emt 0:00:19]} Qd6 {[%emt 0:00:00]} 34. axb5 {[%emt 0:05:19]} Rxb5 {[%emt 0:00:00]} 35. Na6 {[%emt 0:00:05]} f5 {[%emt 0:00:00]} 36. Nc5 {[%emt 0:00:08]} Rb2 {[%emt 0:00:08]} 37. Nd3 {[%emt 0:00:52]} Rb7 {[%emt 0:00:09]} 38. Rab1 {[%emt 0:00:37][%cal Ba1b1,Bb1b3,Bb3b2,Bb2b6][%mdl 32]} Rf7 {[%emt 0:00:04]} 39. Rb3 {[%emt 0:01:57]} g5 {[%emt 0:00:47]} 40. Nb2 {[%emt 0:02:18]} Nxb2 {[%emt 0:00:05]} 41. Rxb2 {[%emt 0:00:05] Black must now prevent Rb6.} Rf6 {[%emt 0:00:58]} 42. Rb6 {[%emt 0:00:29][%cal Rb6c6]} (42. Rb7 {feels hotter.} Ref8 43. Qb3 g4 44. Rb6) 42... Ree6 $2 {[%emt 0:00:35] [#] This move loses the game for Black.} (42... Rc8 $14) 43. Qb3 $1 $18 {[%emt 0:00:26]} Qd7 {[%emt 0:00:26]} 44. Rb7 {[%emt 0:00:18]} Qd6 {[%emt 0:00:01] [#]} 45. Ra1 $1 {[%emt 0:02:14]} Re7 {[%emt 0:00:37]} 46. Rxe7 {[%emt 0:00:52]} Qxe7 {[%emt 0:00:00][%mdl 4096] Endgame KQR-KQR} 47. Qb6 {[%emt 0:00:06] Ra8+ is the strong threat.} Qe6 {[%emt 0:00:00]} 48. Qc7 {[%emt 0:00:52]} Rf7 {[%emt 0:00:00]} 49. Ra8+ {[%emt 0:00:15]} Kg7 $2 {[%emt 0:00:26]} (49... Kh7 50. Qd8 Rg7) 50. Qd8 {[%emt 0:00:14]} Kg6 {[%emt 0:00:06]} 51. Qg8+ {[%emt 0:00:08]} Kh5 {[%emt 0:00:28]} 52. Rf8 {[%emt 0:00:40]} Re7 {[%emt 0:00:00]} 53. Qxe6 {[%emt 0:00:09]} Rxe6 {[%emt 0:00:00]} 54. Rxf5 {[%emt 0:00:02] KR-KR} Kg6 {[%emt 0:00:00]} 55. g4 {[%emt 0:00:06]} Re8 {[%emt 0:00:03]} 56. Re5 {[%emt 0:00:09]} Rxe5 {[%emt 0:00:29]} (56... Rc8 57. Re6+ Kg7) 57. dxe5 {[%emt 0:00:01] KP-KP. White is clearly winning.} Kf7 {[%emt 0:00:06]} 58. f4 {[%emt 0:00:17]} Ke6 {[%emt 0:00:03]} 59. Kf2 {[%emt 0:00:02]} gxf4 {[%emt 0:00:05]} 60. exf4 {[%emt 0:00:01]} d4 {[%emt 0:00:01]} 61. h4 {[%emt 0:00:15][%cal Bh3h4,Bh4h5][%mdl 32]} c5 {[%emt 0:00:06]} 62. h5 {[%emt 0:00:17]} c4 {[%emt 0:00:00]} 63. Ke2 {[%emt 0:00:03]} Kd5 {[%emt 0:00:16]} 64. g5 {[%emt 0:00:16]} d3+ {[%emt 0:00:15]} 65. Kd2 {[%emt 0:00:13]} Kd4 {[%emt 0:00:37]} 66. e6 {[%emt 0:00:08] White wants to mate with g6.} c3+ {[%emt 0:00:01]} 67. Kd1 {[%emt 0:00:15]} d2 {[%emt 0:00:22]} 68. Kc2 {[%emt 0:00:04] Weighted Error Value: White=0.07 (flawless) /Black=0.25 (precise)} (68. e7 $2 {is a self mate.} Kd3 69. e8=Q c2#) 1-0

[Event "FIDE WTC Prel-B 2022"]
[Site "Jerusalem"]
[Date "2022.11.20"]
[Round "1.21"]
[White "Mamedyarov, Shakhriyar"]
[Black "Yakubboev, Nodirbek"]
[Result "1-0"]
[ECO "D79"]
[WhiteElo "2741"]
[BlackElo "2667"]
[Annotator "TA"]
[PlyCount "97"]
[EventDate "2022.11.20"]
[EventType "team-tourn"]
[EventCountry "ISR"]
[SourceTitle "playchess.com"]
[Source "ChessBase"]
[SourceQuality "1"]
[WhiteTeam "Azerbaijan"]
[BlackTeam "Uzbekistan"]
[WhiteTeamCountry "AZE"]
[BlackTeamCountry "UZB"]
[TimeControl "2700+10"]

{[%evp 21,97,24,13,3,14,24,19,29,27,23,44,40,35,22,31,14,38,0,4,0,0,0,0,0,0,0,0,0,0,0,0,0,0,0,0,0,0,0,0,0,0,0,0,0,0,0,0,0,0,0,0,0,0,0,0,0,0,0,0,0,0,0,0,0,104,0,0,0,509,481,538,539,515,472,398,360,4810,1798]} 1. d4 {[%emt 0:00:03]} Nf6 {[%emt 0:00:02]} 2. c4 {[%emt 0:00:01]} g6 {[%emt 0:00:02]} 3. g3 {[%emt 0:00:09]} c6 {[%emt 0:00:03]} 4. Bg2 {[%emt 0:00:08]} d5 {[%emt 0:00:02]} 5. cxd5 {[%emt 0:00:39]} cxd5 {[%emt 0:00:02]} 6. Nc3 {[%emt 0:00:01]} Bg7 {[%emt 0:02:22]} 7. Nf3 {[%emt 0:00:19]} O-O {[%emt 0:01:57]} 8. O-O {[%emt 0:00:41]} Nc6 {[%emt 0:00:24]} 9. Ne5 {[%emt 0:00:05]} Bf5 {[%emt 0:00:38]} 10. Nxc6 {[%emt 0:01:05]} bxc6 {[%emt 0:00:02]} 11. Bf4 {[%emt 0:00:10]} Nd7 {[%emt 0:00:49]} 12. Qd2 {[%emt 0:02:57] D79: Fianchetto Grünfeld: Symmetrical Variation (6 0-0 c6 7 cxd5 cxd5).} e5 {[%emt 0:04:10]} 13. dxe5 {[%emt 0:00:02]} Nxe5 {[%emt 0:00:01]} 14. b3 {[%emt 0:00:08] Inhibits Nc4. The position is equal.} Re8 {[%emt 0:00:24]} 15. Rac1 {[%emt 0:00:02] [#]} Nd7 $146 {[%emt 0:02:29]} ({Predecessor:} 15... Qa5 16. Rfd1 Rac8 17. h3 Nd7 18. Bh6 Bh8 19. e4 dxe4 20. g4 Bxc3 21. Qxc3 Qxc3 22. Rxc3 {1-0 (59) Fridman,D (2607)-Zhalmakhanov,R (2391) Tashkent 2022}) 16. Rfe1 {[%emt 0:04:00]} Rc8 {[%emt 0:02:35]} 17. e4 {[%emt 0:02:55]} (17. Bg5 $5 {[%cal Rg5d8]} Bf6 18. Bh6 $11) 17... Bxc3 {[%emt 0:01:21]} 18. Qxc3 {[%emt 0:00:17]} dxe4 {[%emt 0:00:44]} 19. h3 {[%emt 0:03:33]} h5 {[%emt 0:02:30]} 20. Rcd1 {[%emt 0:04:18]} Qf6 {[%emt 0:00:22]} 21. Qxf6 {[%emt 0:01:35]} Nxf6 {[%emt 0:04:11]} 22. Rd4 {[%emt 0:00:02]} Nd5 {[%emt 0:06:27]} 23. Bd2 {[%emt 0:01:28]} Re6 {[%emt 0:02:15]} 24. Kh2 {[%emt 0:02:21][%cal Rg2e4]} Rce8 {[%emt 0:00:17]} 25. b4 {[%emt 0:04:58]} e3 {[%emt 0:11:25]} 26. Bxd5 {[%emt 0:00:08]} exd2 {[%emt 0:00:46]} 27. Rxe6 {[%emt 0:00:03]} Bxe6 {[%emt 0:00:01]} 28. Bxe6 {[%emt 0:01:57]} Rxe6 {[%emt 0:00:02]} 29. Rxd2 $11 {[%emt 0:15:55][%mdl 4096] Endgame KR-KR} Re4 {[%emt 0:00:02]} 30. a3 {[%emt 0:00:00]} a5 {[%emt 0:01:45]} 31. bxa5 {[%emt 0:00:00]} Ra4 {[%emt 0:00:01][%csl LRa3,LRa5]} 32. Rd3 {[%emt 0:00:00]} Rxa5 {[%emt 0:00:02]} 33. Kg2 {[%emt 0:00:00]} Kg7 {[%emt 0:00:19]} 34. Kf3 {[%emt 0:00:00]} Kf6 {[%emt 0:00:08]} 35. Re3 {[%emt 0:00:00]} Rf5+ {[%emt 0:01:01]} 36. Ke2 {[%emt 0:00:00]} Rb5 {[%emt 0:00:25]} 37. Kd3 {[%emt 0:00:00]} Rb2 {[%emt 0:00:04]} 38. Rf3+ {[%emt 0:00:00]} Ke6 {[%emt 0:00:06] Hoping for ...Rb3+.} 39. Kc3 {[%emt 0:00:00] Prevents Rb3+.} Rb1 {[%emt 0:00:45]} 40. Kc4 {[%emt 0:00:00]} g5 {[%emt 0:00:24]} 41. a4 {[%emt 0:00:00]} Ra1 {[%emt 0:00:16] Against Ra3} 42. Kb4 {[%emt 0:00:00]} f5 {[%emt 0:00:07]} (42... c5+ $11 43. Kb5 g4 44. hxg4 hxg4) 43. a5 {[%emt 0:00:00]} (43. Ra3 $1 $16 {[%cal Ra3a1]} c5+ 44. Kb3 Rb1+ 45. Kc3) 43... c5+ {[%emt 0:00:11]} 44. Kb5 {[%emt 0:00:00]} c4 $2 {[%emt 0:00:03][%mdl 8192] [#]} (44... g4 $11 45. hxg4 fxg4 46. Re3+ Kd5) 45. Kb4 $1 $18 {[%emt 0:00:00]} Kd5 {[%emt 0:00:15] [#] White must now prevent ...Kd4.} 46. Ra3 $1 {[%emt 0:00:00]} (46. Rxf5+ Kd4 47. Rf7 (47. Rxg5 $2 Rb1+ 48. Ka4 c3 $19) 47... Rb1+ 48. Ka4 c3 49. Rd7+ Kc4 50. Rc7+ Kd3 51. Rd7+ (51. a6 $2 c2 $19) 51... Kc4 52. Rc7+ Kd3 53. Rd7+ (53. a6 $2 c2 $19) 53... Ke2 $17) 46... Rb1+ {[%emt 0:00:03]} 47. Kc3 {[%emt 0:00:00]} Rc1+ {[%emt 0:00:26]} 48. Kd2 {[%emt 0:00:00]} Rf1 {[%emt 0:00:03]} (48... Rb1 49. a6 Rb8) 49. a6 {[%emt 0:00:00] Weighted Error Value: White=0.06 (flawless) /Black=0.29 (precise)} 1-0